bitfinex/quotes_ETHUSD_20251128
["timestamp","ask_amount","ask_price","bid_price","bid_amount"]
[1764324242274,0.30687211,3055.0,3054.9,9.47264714]
[1764324242470,0.30687211,3055.0,3054.9,9.25824714]
[1764324242786,0.30673726,3055.0,3054.9,9.25824714]
[1764324243097,0.30673726,3055.0,3054.9,10.19084125]
[1764324243877,0.30673726,3055.0,3054.9,9.46524714]
[1764324244751,0.30673726,3055.0,3054.9,4.83428794]
[1764324245848,0.30673726,3055.0,3054.9,4.62728794]
[1764324246080,0.30673726,3055.0,3054.9,4.83428794]
[1764324247251,0.78133726,3055.0,3054.9,3.27342957]
[1764324247485,0.78133726,3055.0,3054.8,0.001]
[1764324247801,0.30553726,3054.9,3054.8,0.001]
[1764324248199,0.78013726,3054.9,3054.8,0.001]
[1764324250198,0.30553726,3054.9,3054.8,0.001]
[1764324250399,0.30553726,3054.9,3054.8,5.55541354]
[1764324250573,0.30553726,3054.9,3054.8,5.76981354]
[1764324250764,0.30553726,3054.9,3054.8,5.73707818]
[1764324250970,0.30553726,3054.9,3054.8,5.55541354]
[1764324251171,0.30553726,3054.9,3054.8,5.52267818]
[1764324251700,0.30553726,3054.9,3054.8,8.7962149]
[1764324252274,0.76123726,3054.9,3054.8,3.27453672]
[1764324253597,0.76123726,3054.9,3054.8,0.001]
[1764324253598,1.25943726,3054.9,3054.8,0.001]
[1764324257077,0.30553726,3054.9,3054.8,0.001]
[1764324257282,0.30473726,3054.9,3054.8,0.001]
[1764324259113,0.30473726,3054.9,3054.8,3.27453672]
[1764324259813,0.76623726,3054.9,3054.8,3.27453672]
[1764324260186,0.30473726,3054.9,3054.8,3.27453672]
[1764324260712,0.76623726,3054.9,3054.8,3.27453672]
[1764324260886,1.26443726,3054.9,3054.8,3.27453672]
[1764324261910,0.30473726,3054.9,3054.8,3.48893672]
[1764324262118,0.30473726,3054.9,3054.8,4.62845882]
[1764324262609,0.30473726,3054.9,3054.8,4.87559418]
[1764324262809,0.30473726,3054.9,3054.8,4.66119418]
[1764324266984,0.30473726,3054.9,3054.8,4.87559418]
[1764324267805,0.0012,3055.0,3054.8,8.1491309]
[1764324268001,0.0012,3055.0,3054.9,2.03434152]
[1764324268388,0.0012,3055.0,3054.9,5.30777109]
[1764324269297,0.30684051,3055.0,3054.9,5.34050538]
[1764324273605,0.30684051,3055.0,3054.9,5.12610538]
[1764324273783,0.30684051,3055.0,3054.9,5.09337109]
[1764324274218,0.30684051,3055.0,3054.9,5.12610538]
[1764324274719,0.30684051,3055.0,3054.9,5.09337109]
[1764324276213,0.30684051,3055.0,3054.9,5.12610538]
[1764324276591,0.30684051,3055.0,3054.9,5.34050538]
[1764324276786,0.30684051,3055.0,3054.9,5.12610538]
[1764324276997,0.30684051,3055.0,3054.9,5.09337109]
[1764324277212,0.30684051,3055.0,3054.9,5.12610538]
[1764324277417,0.30684051,3055.0,3054.9,5.09337109]
[1764324278524,0.30684051,3055.0,3054.9,5.12610538]
[1764324278725,0.30684051,3055.0,3054.9,5.09337109]
[1764324279725,0.30684051,3055.0,3054.9,5.05998109]
[1764324281122,0.75994051,3055.0,3054.9,4.84558109]
[1764324281335,0.75994051,3055.0,3054.9,3.27342957]
[1764324281500,1.25184051,3055.0,3054.9,3.27342957]
[1764324282001,0.30604051,3055.0,3054.9,3.48782957]
[1764324282626,0.30604051,3055.0,3054.9,3.52056386]
[1764324282825,0.30604051,3055.0,3054.9,3.48782957]
[1764324283326,1.25184051,3055.0,3054.9,3.27342957]
[1764324284928,1.25184051,3055.0,3054.8,3.27453672]
[1764324285109,1.44714051,3054.9,3054.8,3.27453672]
[1764324287232,1.1415,3054.9,3054.8,3.27453672]
[1764324287438,1.44662638,3054.9,3054.8,3.27453672]
[1764324288711,1.44662638,3054.9,3054.8,3.30727208]
[1764324289233,0.30512638,3054.9,3054.8,3.48893672]
[1764324289411,0.30512638,3054.9,3054.8,3.52167208]
[1764324290121,0.30512638,3054.9,3054.8,3.73607208]
[1764324290830,0.30512638,3054.9,3054.8,3.70333672]
[1764324292339,1.44922638,3054.9,3054.8,3.27453672]
[1764324293038,0.30512638,3054.9,3054.8,3.27453672]
[1764324293937,0.30512638,3054.9,3054.8,4.41331901]
[1764324294144,0.30512638,3054.9,3054.8,4.66045437]
[1764324294941,0.30512638,3054.9,3054.8,4.41331901]
[1764324295435,0.75822638,3054.9,3054.8,4.44605437]
[1764324295639,1.25092638,3054.9,3054.8,3.27453672]
[1764324296622,0.30512638,3054.9,3054.8,3.52167208]
[1764324298544,0.30512638,3054.9,3054.8,3.48893672]
[1764324300828,0.30512638,3054.9,3054.8,3.27453672]
[1764324301147,0.95652638,3054.9,3054.8,3.27453672]
[1764324301316,1.44934161,3054.9,3054.8,3.27453672]
[1764324301846,1.44854161,3054.9,3054.8,3.27453672]
[1764324303051,1.44854161,3054.9,3054.8,0.001]
[1764324304453,5.83066414,3054.9,3054.8,0.001]
[1764324304623,5.961802,3054.9,3054.8,0.001]
[1764324304956,6.84213647,3054.9,3054.8,0.001]
[1764324305445,7.061802,3054.9,3054.8,0.001]
[1764324305648,1.351304,3054.8,3054.4,0.001]
[1764324305852,0.4531,3054.5,3054.4,0.001]
[1764324306020,0.75834161,3054.5,3054.4,0.001]
[1764324306221,1.25104161,3054.5,3054.4,0.001]
[1764324306537,2.16123057,3054.5,3054.4,0.001]
[1764324307350,7.14432334,3054.5,3054.4,0.001]
[1764324307661,7.24352334,3054.5,3054.4,0.001]
[1764324307821,7.64902734,3054.5,3054.4,0.001]
[1764324310833,7.54982734,3054.5,3054.4,0.001]
[1764324313428,7.64902734,3054.5,3054.4,0.001]
[1764324314257,12.28407997,3054.5,3054.4,0.001]
[1764324314838,7.64902734,3054.5,3054.4,0.001]
[1764324317562,7.64902734,3054.5,3054.1,0.001]
[1764324317563,23.762827,3054.3,3054.1,0.001]
[1764324317768,5.13975663,3053.8,3053.7,0.001]
[1764324317956,7.67698131,3053.8,3053.7,0.001]
[1764324318159,8.17298131,3053.8,3053.7,0.001]
[1764324318672,8.45388127,3053.8,3053.7,0.001]
[1764324319162,3.51262864,3053.8,3053.7,0.001]
[1764324319354,3.71962864,3053.8,3053.7,0.001]
[1764324319660,6.99423732,3053.8,3053.7,0.001]
[1764324319854,3.71962864,3053.8,3053.7,0.001]
[1764324320262,6.99423732,3053.8,3053.7,0.001]
[1764324320550,7.09343732,3053.8,3053.7,0.001]
[1764324323470,3.61182864,3053.8,3053.7,0.001]
[1764324323650,3.71962864,3053.8,3053.7,0.001]
[1764324324054,6.99423732,3053.8,3053.7,0.001]
[1764324324761,3.71962864,3053.8,3053.7,0.001]
[1764324324965,6.99423732,3053.8,3053.7,0.001]
[1764324325494,3.71962864,3053.8,3053.7,0.001]
[1764324326599,1.28933053,3053.8,3053.7,0.2172]
[1764324326805,0.30524161,3053.8,3053.7,0.70252526]
[1764324327895,0.30524161,3053.8,3053.7,3.97724117]
[1764324328591,0.30524161,3053.8,3053.7,0.48632526]
[1764324328797,0.30524161,3053.8,3053.7,3.27571591]
[1764324328977,0.30340124,3053.8,3053.7,3.49191591]
[1764324329970,0.30260124,3053.8,3053.7,3.49191591]
[1764324330701,0.002,3054.0,3053.7,6.76663182]
[1764324330897,0.002,3054.0,3053.9,0.2162]
[1764324331876,0.002,3054.0,3053.9,3.70690145]
[1764324332395,0.002,3054.0,3053.9,0.2162]
[1764324333596,0.002,3054.0,3053.8,6.54921736]
[1764324334094,0.498,3054.0,3053.7,6.55043182]
[1764324334302,1.102,3054.0,3053.7,7.205575]
[1764324337502,1.598,3054.0,3053.7,6.55043182]
[1764324339178,1.598,3054.0,3053.7,0.001]
[1764324341804,1.102,3054.0,3053.7,0.001]
[1764324341997,0.75960653,3053.9,3053.7,0.001]
[1764324342315,0.75530653,3053.8,3053.7,0.001]
[1764324342980,1.41750653,3053.8,3053.7,0.001]
[1764324343591,1.49521146,3053.8,3053.7,0.001]
[1764324343777,1.49521146,3053.8,3053.7,0.2172]
[1764324343982,2.40131146,3053.8,3053.7,0.001]
[1764324344389,1.49521146,3053.8,3053.7,0.2172]
[1764324344790,1.49521146,3053.8,3053.7,0.001]
[1764324345186,1.94611146,3053.8,3053.7,0.001]
[1764324345515,0.30440653,3053.8,3053.7,0.001]
[1764324345681,0.51140653,3053.8,3053.7,0.001]
[1764324346190,0.96230653,3053.8,3053.7,0.001]
[1764324347217,0.30440653,3053.8,3053.7,0.2172]
[1764324347714,0.30440653,3053.8,3053.7,3.49191591]
[1764324349124,0.30440653,3053.8,3053.7,9.53781399]
[1764324349286,0.30440653,3053.8,3053.7,9.50506684]
[1764324349686,0.30440653,3053.8,3053.7,9.28886684]
[1764324350283,0.30440653,3053.8,3053.7,9.50506684]
[1764324351102,0.30440653,3053.8,3053.7,9.28886684]
[1764324351617,1.21050653,3053.8,3053.7,0.001]
[1764324352189,0.75530653,3053.8,3053.7,0.001]
[1764324354317,0.30360653,3053.8,3053.7,0.2172]
[1764324356030,0.30360653,3053.8,3053.7,3.49191591]
[1764324358794,0.75450653,3053.8,3053.7,3.27571591]
[1764324358994,1.20970653,3053.8,3053.7,3.27571591]
[1764324359409,0.75450653,3053.8,3053.7,3.27571591]
[1764324360636,0.75650653,3053.8,3053.7,0.001]
[1764324361301,1.21170653,3053.8,3053.7,0.001]
[1764324361493,0.9081,3053.8,3053.7,0.001]
[1764324366122,1.2132538,3053.8,3053.7,0.001]
[1764324367236,0.3071538,3053.8,3053.7,0.2172]
[1764324367700,0.3071538,3053.8,3053.7,1.59860617]
[1764324369132,0.3071538,3053.8,3053.7,4.87332208]
[1764324369510,0.3071538,3053.8,3053.7,4.90606923]
[1764324370625,0.002,3053.8,3053.7,5.63166334]
[1764324370826,0.002,3054.0,3053.7,8.8736321]
[1764324371133,0.002,3054.0,3053.9,8.85159299]
[1764324371635,0.002,3054.2,3053.9,8.85159299]
[1764324371636,0.002,3054.2,3054.0,0.72559411]
[1764324371834,0.002,3054.2,3054.1,0.3384]
[1764324372042,0.002,3054.2,3054.1,0.5546]
[1764324372614,0.002,3054.4,3054.3,5.36089154]
[1764324372955,0.002,3054.4,3054.3,6.59184069]
[1764324373120,0.002,3054.4,3054.3,9.8659133]
[1764324378440,0.002,3054.4,3054.3,9.6497133]
[1764324378441,0.0012,3054.4,3054.3,9.6497133]
[1764324378856,0.0012,3054.4,3054.3,9.8659133]
[1764324381870,0.0012,3054.4,3054.3,9.6497133]
[1764324382020,0.0012,3054.4,3054.3,9.8659133]
[1764324382215,0.0012,3054.4,3054.3,5.01441587]
[1764324382454,0.0012,3054.4,3054.3,9.68245402]
[1764324382659,0.0012,3054.4,3054.3,9.8659133]
[1764324383365,0.0012,3054.4,3054.3,9.6497133]
[1764324384233,0.0012,3054.4,3054.3,8.92411919]
[1764324387660,0.0012,3054.4,3054.3,8.70791919]
[1764324388022,0.0012,3054.4,3054.3,8.92411919]
[1764324388631,0.0012,3054.4,3054.3,8.70791919]
[1764324389226,0.0012,3054.4,3054.3,8.92411919]
[1764324389428,0.0012,3054.4,3054.3,8.70791919]
[1764324389955,0.4562,3054.4,3054.3,3.48107261]
[1764324390622,0.0012,3054.4,3054.3,3.48107261]
[1764324391948,0.4562,3054.4,3054.3,3.48107261]
[1764324392143,0.9239,3054.4,3054.3,3.48107261]
[1764324393463,0.9239,3054.4,3054.3,3.27407261]
[1764324393464,0.4562,3054.4,3054.3,3.27407261]
[1764324393638,0.75975507,3054.4,3054.3,3.27407261]
[1764324394440,0.30475507,3054.4,3054.3,3.27407261]
[1764324394642,0.30475507,3054.4,3054.3,8.80109509]
[1764324395831,0.30475507,3054.4,3054.3,4.16579766]
[1764324396038,1.22745507,3054.4,3054.3,3.27407261]
[1764324396438,0.75975507,3054.4,3054.3,3.27507261]
[1764324397739,0.75975507,3054.4,3054.3,0.001]
[1764324398467,1.22745507,3054.4,3054.3,0.001]
[1764324401070,0.75975507,3054.4,3054.3,0.001]
[1764324402733,0.75895507,3054.4,3054.3,0.001]
[1764324403174,0.30395507,3054.4,3054.3,0.001]
[1764324404174,0.75615507,3054.4,3054.3,0.001]
[1764324404666,1.25235507,3054.4,3054.3,0.001]
[1764324406088,0.75615507,3054.4,3054.3,0.001]
[1764324407572,1.25235507,3054.4,3054.3,0.001]
[1764324417103,1.45935507,3054.4,3054.3,0.001]
[1764324420594,1.46068334,3054.4,3054.3,0.001]
[1764324423176,1.55988334,3054.4,3054.3,0.001]
[1764324423593,1.46068334,3054.4,3054.3,0.001]
[1764324426892,1.45988334,3054.4,3054.3,0.001]
[1764324429202,1.86538734,3054.4,3054.3,0.001]
[1764324429409,1.86538734,3054.4,3053.9,0.001]
[1764324429410,1.13109811,3054.0,3053.9,0.001]
[1764324429705,1.68967745,3054.0,3053.9,0.001]
[1764324430004,2.88772698,3054.0,3053.9,0.001]
[1764324430303,3.01889709,3054.0,3053.9,0.001]
[1764324430872,2.81189709,3054.0,3053.9,0.001]
[1764324431077,3.01889709,3054.0,3053.9,0.001]
[1764324431374,6.79799532,3054.0,3053.9,0.001]
[1764324432278,5.99694579,3054.0,3053.9,0.001]
[1764324432685,6.79696476,3054.0,3053.9,0.001]
[1764324433090,6.69776476,3054.0,3053.9,0.001]
[1764324438806,1.68967745,3054.0,3053.9,0.001]
[1764324439120,2.16727745,3054.0,3053.9,0.001]
[1764324439620,1.23747745,3054.0,3053.9,0.001]
[1764324439837,0.30488334,3054.0,3053.9,4.85631578]
[1764324439997,0.30488334,3054.0,3053.9,5.55964736]
[1764324440697,0.30488334,3054.0,3053.9,8.83414881]
[1764324449343,0.002,3054.3,3053.9,15.38315171]
[1764324449512,0.002,3054.3,3054.1,4.63771578]
[1764324449513,0.303732,3054.2,3054.1,4.63771578]
[1764324449836,0.303732,3054.2,3054.1,5.84858081]
[1764324450144,0.303732,3054.2,3054.1,6.18978081]
[1764324451142,0.302932,3054.2,3054.1,9.46406783]
[1764324455645,0.302932,3054.2,3054.1,9.68166783]
[1764324457645,0.302932,3054.2,3054.1,9.46406783]
[1764324460957,1.291832,3054.2,3054.1,3.27428702]
[1764324461259,1.291832,3054.2,3053.9,0.001]
[1764324461460,0.49,3054.0,3053.9,3.27547428]
[1764324461860,2.0889,3054.0,3053.9,3.27547428]
[1764324462165,0.9889,3054.0,3053.9,3.27547428]
[1764324462365,0.9889,3054.0,3053.9,0.001]
[1764324463167,1.29278957,3054.0,3053.9,0.001]
[1764324465667,0.30388957,3054.0,3053.9,5.76180397]
[1764324467073,0.30388957,3054.0,3053.9,9.03630542]
[1764324467372,0.30388957,3054.0,3053.9,9.00356041]
[1764324467967,0.30388957,3054.0,3053.9,9.72915452]
[1764324469179,0.30388957,3054.0,3053.9,9.93615452]
[1764324474776,0.30388957,3054.0,3053.9,9.71855452]
[1764324475460,0.30308957,3054.0,3053.9,9.71855452]
[1764324476895,1.29198957,3054.0,3053.9,3.27550145]
[1764324480992,1.29198957,3054.0,3053.9,7.91321723]
[1764324481228,0.79308957,3054.0,3053.9,7.91321723]
[1764324481896,1.29198957,3054.0,3053.9,7.91321723]
[1764324482392,0.30308957,3054.0,3053.9,7.91321723]
[1764324483170,0.30308957,3054.0,3053.9,9.27039943]
[1764324485915,0.30308957,3054.0,3053.9,9.05279943]
[1764324486768,0.79308957,3054.0,3053.9,7.91321723]
[1764324487362,1.29198957,3054.0,3053.9,7.91321723]
[1764324490789,1.29198957,3054.0,3053.9,0.001]
[1764324493567,0.30308957,3054.0,3053.9,0.2186]
[1764324493966,0.30308957,3054.0,3053.9,0.001]
[1764324496873,0.75958957,3054.0,3053.9,0.001]
[1764324497073,0.30308957,3054.0,3053.9,0.001]
[1764324499602,0.30228957,3054.0,3053.9,0.001]
[1764324502803,0.30428957,3054.0,3053.9,0.001]
[1764324504975,0.30428957,3054.0,3053.9,1.60826028]
[1764324505174,0.30428957,3054.0,3053.9,1.57551527]
[1764324505702,0.30428957,3054.0,3053.9,4.85001672]
[1764324506608,0.30428957,3054.0,3053.9,4.63241672]
[1764324507101,0.30428957,3054.0,3053.9,4.85001672]
[1764324507805,0.30428957,3054.0,3053.9,4.63241672]
[1764324509300,0.30428957,3054.0,3053.9,4.85001672]
[1764324511606,0.30428957,3054.0,3053.9,4.63241672]
[1764324512305,0.76078957,3054.0,3053.9,4.41481672]
[1764324512617,0.30428957,3054.0,3053.9,4.41481672]
[1764324515090,0.30664684,3054.0,3053.9,4.41481672]
[1764324517016,0.76314684,3054.0,3053.9,4.41481672]
[1764324517220,1.24714684,3054.0,3053.9,4.41481672]
[1764324517521,0.76314684,3054.0,3053.9,4.41481672]
[1764324519828,1.24714684,3054.0,3053.9,4.41481672]
[1764324519997,1.24714684,3054.0,3053.9,3.27550145]
[1764324520329,1.24714684,3054.0,3053.9,3.30824646]
[1764324520919,1.24714684,3054.0,3053.9,3.27550145]
[1764324521628,1.24707027,3054.0,3053.9,3.27550145]
[1764324521832,1.24707027,3054.0,3053.9,3.30824646]
[1764324522498,0.30657027,3054.0,3053.9,3.30824646]
[1764324522698,0.30657027,3054.0,3053.9,4.45082551]
[1764324523944,0.30577027,3054.0,3053.9,3.30824646]
[1764324525247,0.30577027,3054.0,3053.9,3.52584646]
[1764324525400,0.30577027,3054.0,3053.9,4.46904057]
[1764324528523,0.0012,3054.0,3053.9,4.46904057]
[1764324537756,0.0012,3054.0,3053.9,4.25144057]
[1764324538065,0.0012,3054.0,3053.9,5.48833903]
[1764324538453,0.0012,3054.0,3053.9,15.48833903]
[1764324538632,0.0012,3054.0,3053.9,15.45559402]
[1764324539759,0.0012,3054.0,3053.9,15.67319402]
[1764324540067,0.0012,3054.0,3053.9,15.45559402]
[1764324541697,0.9175,3054.0,3053.9,13.27550145]
[1764324541849,1.2218378,3054.0,3053.9,13.27550145]
[1764324542354,0.3055378,3054.0,3053.9,17.91044069]
[1764324542764,0.7630378,3054.0,3053.9,17.91044069]
[1764324543149,1.2218378,3054.0,3053.9,17.91044069]
[1764324543776,1.15971003,3054.0,3053.9,17.91044069]
[1764324545283,1.15971003,3054.0,3053.9,13.27550145]
[1764324548279,1.15891003,3054.0,3053.9,13.27550145]
[1764324548865,1.15891003,3054.0,3053.9,3.27550145]
[1764324549478,1.15891003,3054.0,3053.9,0.001]
[1764324554387,1.16091003,3054.0,3053.9,0.001]
[1764324562000,5.04780826,3054.0,3053.9,0.001]
[1764324562292,6.83319773,3054.0,3053.9,0.001]
[1764324562519,7.93319773,3054.0,3053.9,0.001]
[1764324564194,7.72619773,3054.0,3053.9,0.001]
[1764324564396,7.83399773,3054.0,3053.9,0.001]
[1764324565131,7.83317038,3054.0,3053.9,0.001]
[1764324565488,7.93237038,3054.0,3053.9,0.001]
[1764324566193,7.23091321,3054.0,3053.9,0.001]
[1764324566393,7.93231784,3054.0,3053.9,0.001]
[1764324566613,7.72531784,3054.0,3053.9,0.001]
[1764324566818,7.93231784,3054.0,3053.9,0.001]
[1764324567203,7.23091321,3054.0,3053.9,0.001]
[1764324571137,7.13171321,3054.0,3053.9,0.001]
[1764324571323,7.83320769,3054.0,3053.9,0.001]
[1764324571942,7.93240769,3054.0,3053.9,0.001]
[1764324572237,3.65031898,3054.0,3053.9,0.001]
[1764324572448,3.85651898,3054.0,3053.9,0.001]
[1764324574718,3.64951898,3054.0,3053.9,0.001]
[1764324574933,3.85651898,3054.0,3053.9,0.001]
[1764324577421,7.13091321,3054.0,3053.9,0.001]
[1764324578055,3.85651898,3054.0,3053.9,0.001]
[1764324578347,3.64951898,3054.0,3053.9,0.001]
[1764324578555,8.65774465,3054.0,3053.9,0.001]
[1764324582145,8.55854465,3054.0,3053.9,0.001]
[1764324582967,8.35154465,3054.0,3053.9,0.001]
[1764324583138,8.55854465,3054.0,3053.9,0.001]
[1764324588339,8.62188031,3054.0,3053.9,0.001]
[1764324589251,9.49870178,3054.0,3053.9,0.001]
[1764324591495,8.62188031,3054.0,3053.9,0.001]
[1764324595360,8.72108031,3054.0,3053.9,0.001]
[1764324596563,13.35584905,3054.0,3053.9,0.001]
[1764324599558,8.72028031,3054.0,3053.9,0.001]
[1764324600568,8.62108031,3054.0,3053.9,0.001]
[1764324600966,8.72028031,3054.0,3053.9,0.001]
[1764324602556,8.7206675,3054.0,3053.9,0.001]
[1764324604865,7.9556675,3054.0,3053.9,0.001]
[1764324605172,9.50237578,3054.0,3053.9,0.001]
[1764324606172,8.6225675,3054.0,3053.9,0.001]
[1764324608146,2.98958354,3054.0,3053.9,0.2194]
[1764324608352,1.40753288,3054.0,3053.9,0.4378]
[1764324608577,1.61453288,3054.0,3053.9,0.94523687]
[1764324609349,1.40753288,3054.0,3053.9,0.2194]
[1764324609549,1.61453288,3054.0,3053.9,0.2194]
[1764324609960,1.61453288,3054.0,3053.9,0.4378]
[1764324610186,1.61453288,3054.0,3053.9,3.71230145]
[1764324610556,1.61453288,3054.0,3053.9,0.2194]
[1764324611082,1.61453288,3054.0,3053.9,3.49390145]
[1764324611380,1.61453288,3054.0,3053.9,4.17085648]
[1764324612978,1.61453288,3054.0,3053.9,4.38925648]
[1764324613366,1.61453288,3054.0,3053.9,4.17085648]
[1764324613583,1.61453288,3054.0,3053.9,0.2194]
[1764324614157,1.61453288,3054.0,3053.9,3.49390145]
[1764324614360,1.61453288,3054.0,3053.9,0.2194]
[1764324617262,1.61453288,3054.0,3053.9,0.001]
[1764324617768,1.61453288,3054.0,3053.9,0.2194]
[1764324619894,2.58793288,3054.0,3053.9,0.001]
[1764324620267,2.09173288,3054.0,3053.9,0.001]
[1764324620774,2.09093288,3054.0,3053.9,0.001]
[1764324622797,1.61373288,3054.0,3053.9,0.001]
[1764324623196,1.61373288,3054.0,3053.9,0.2194]
[1764324624806,2.09093288,3054.0,3053.9,0.001]
[1764324624971,2.58713288,3054.0,3053.9,0.001]
[1764324626599,1.61373288,3054.0,3053.9,0.2194]
[1764324627205,1.61373288,3054.0,3053.9,0.001]
[1764324627513,2.09093288,3054.0,3053.9,0.001]
[1764324630007,1.61373288,3054.0,3053.9,0.001]
[1764324631902,2.09093288,3054.0,3053.9,0.001]
[1764324632487,1.61373288,3054.0,3053.9,0.001]
[1764324634774,1.61373288,3054.0,3053.9,0.2194]
[1764324635490,1.61346011,3054.0,3053.9,0.2194]
[1764324640213,1.61346011,3054.0,3053.9,0.001]
[1764324641107,1.40646011,3054.0,3053.9,0.001]
[1764324641312,1.61346011,3054.0,3053.9,0.001]
[1764324641613,1.61346011,3054.0,3053.9,0.2194]
[1764324642014,1.61374484,3054.0,3053.9,0.2194]
[1764324644010,1.61374484,3054.0,3053.9,0.4378]
[1764324644222,1.61374484,3054.0,3053.9,3.71230145]
[1764324644395,1.61374484,3054.0,3053.9,4.41110852]
[1764324645221,1.61294484,3054.0,3053.9,4.19270852]
[1764324648527,1.61289243,3054.0,3053.9,4.19270852]
[1764324648817,1.40589243,3054.0,3053.9,4.19270852]
[1764324649023,1.61289243,3054.0,3053.9,4.41110852]
[1764324651301,1.61289243,3054.0,3053.9,4.19270852]
[1764324651499,1.61289243,3054.0,3053.9,4.41110852]
[1764324653729,1.40589243,3054.0,3053.9,4.41110852]
[1764324653936,0.30589243,3054.0,3053.9,4.41110852]
[1764324654101,0.30589243,3054.0,3053.9,4.19270852]
[1764324654498,0.79459243,3054.0,3053.9,0.001]
[1764324654702,1.28339243,3054.0,3053.9,0.001]
[1764324654916,0.79459243,3054.0,3053.9,0.001]
[1764324655122,0.30589243,3054.0,3053.9,0.001]
[1764324655526,0.79459243,3054.0,3053.9,0.001]
[1764324655726,1.28339243,3054.0,3053.9,0.001]
[1764324655930,1.49807389,3054.0,3053.9,0.001]
[1764324656302,0.79459243,3054.0,3053.9,0.001]
[1764324656504,0.30589243,3054.0,3053.9,0.001]
[1764324657029,1.00937389,3054.0,3053.9,0.001]
[1764324657326,0.30589243,3054.0,3053.9,0.001]
[1764324659928,1.00589243,3054.0,3053.9,0.001]
[1764324660104,1.70937389,3054.0,3053.9,0.001]
[1764324662133,1.70937389,3054.0,3053.9,0.2194]
[1764324662532,1.00937389,3054.0,3053.9,0.2194]
[1764324663232,0.30589243,3054.0,3053.9,0.2194]
[1764324664111,0.51289243,3054.0,3053.9,3.71230145]
[1764324664415,0.51289243,3054.0,3053.9,3.49390145]
[1764324665437,0.51289243,3054.0,3053.9,3.71230145]
[1764324665608,0.30589243,3054.0,3053.9,4.41108638]
[1764324667507,0.30589243,3054.0,3053.9,4.19268638]
[1764324667712,0.30589243,3054.0,3053.9,4.41108638]
[1764324669540,0.30509243,3054.0,3053.9,4.41108638]
[1764324670836,0.30509243,3054.0,3053.9,4.91828049]
[1764324671035,0.30509243,3054.0,3053.9,5.1694255]
[1764324672621,0.30709243,3054.0,3053.9,5.1694255]
[1764324674641,0.30709243,3054.0,3053.9,9.80323213]
[1764324674831,0.30709243,3054.0,3053.9,9.77048712]
[1764324679219,0.30709243,3054.0,3053.9,9.55208712]
[1764324679420,0.30709243,3054.0,3053.9,8.82649301]
[1764324679815,0.30709243,3054.0,3053.9,9.04489301]
[1764324684925,0.30709243,3054.0,3053.9,9.25089301]
[1764324689260,0.30709243,3054.0,3053.9,9.97648712]
[1764324691356,0.002,3054.0,3053.9,9.97648712]
[1764324691933,0.002,3054.2,3054.0,0.72559411]
[1764324692139,0.002,3054.2,3054.1,7.06004247]
[1764324692356,0.30697531,3054.2,3054.1,7.2456996]
[1764324693558,0.30617531,3054.2,3054.1,10.51998662]
[1764324696334,0.30617531,3054.2,3054.1,15.15379325]
[1764324696539,0.002,3054.4,3054.2,1.16239411]
[1764324696741,0.002,3054.4,3054.3,12.36571553]
[1764324697059,0.002,3054.4,3054.3,15.82544742]
[1764324697967,0.002,3054.4,3054.3,15.60704742]
[1764324698264,0.002,3054.4,3054.3,15.82544742]
[1764324701474,0.4838,3054.4,3054.3,1.91536744]
[1764324701642,0.9767,3054.4,3053.9,0.13210219]
[1764324701843,0.4818,3054.0,3053.9,0.13210219]
[1764324702070,0.4818,3054.0,3053.9,0.001]
[1764324702267,0.9747,3054.0,3053.9,0.001]
[1764324702460,0.9747,3054.0,3053.9,3.27550145]
[1764324703674,0.9747,3054.0,3053.9,0.001]
[1764324708676,1.27942107,3054.0,3053.9,0.001]
[1764324713785,9.59312593,3054.0,3053.9,0.001]
[1764324713949,11.11913193,3054.0,3053.9,0.001]
[1764324714277,6.61651219,3054.0,3053.9,0.001]
[1764324716353,5.9153003,3054.0,3053.9,0.001]
[1764324717879,5.9145003,3054.0,3053.9,0.001]
[1764324720494,2.74790607,3054.0,3053.9,0.001]
[1764324720659,2.02231196,3054.0,3053.9,0.001]
[1764324721489,1.27862107,3054.0,3053.9,0.001]
[1764324721858,1.68412507,3054.0,3053.9,0.001]
[1764324722065,4.9585193,3054.0,3053.9,0.001]
[1764324722266,5.08969501,3054.0,3053.9,0.001]
[1764324722568,4.9585193,3054.0,3053.9,0.001]
[1764324723892,5.0577193,3054.0,3053.9,0.001]
[1764324725966,5.78331341,3054.0,3053.9,0.001]
[1764324729385,6.48456706,3054.0,3053.9,0.001]
[1764324732899,6.6157617,3054.0,3053.9,0.001]
[1764324735090,6.5165617,3054.0,3053.9,0.001]
[1764324735491,6.7235617,3054.0,3053.9,0.001]
[1764324737918,6.5165617,3054.0,3053.9,0.001]
[1764324738206,2.74926747,3054.0,3053.9,0.001]
[1764324738512,2.82507283,3054.0,3053.9,0.001]
[1764324738710,3.29567283,3054.0,3053.9,0.001]
[1764324739510,2.41956883,3054.0,3053.9,0.001]
[1764324740606,2.21256883,3054.0,3053.9,0.001]
[1764324740816,1.93856883,3054.0,3053.9,0.001]
[1764324741019,1.94056883,3054.0,3053.9,0.001]
[1764324741221,1.21497472,3054.0,3053.9,0.001]
[1764324741909,1.43712107,3054.0,3053.9,0.001]
[1764324742095,2.13757472,3054.0,3053.9,0.001]
[1764324743022,1.66697472,3054.0,3053.9,0.001]
[1764324744235,1.00717472,3054.0,3053.9,0.2202]
[1764324744417,0.51292107,3054.0,3053.9,0.4394]
[1764324744983,0.51292107,3054.0,3053.9,3.71390145]
[1764324745223,0.51292107,3054.0,3053.9,0.91916043]
[1764324745592,0.51292107,3054.0,3053.9,4.19366188]
[1764324748711,0.30592107,3054.0,3053.9,4.19366188]
[1764324749026,0.30592107,3054.0,3053.9,4.41286188]
[1764324749188,0.002,3054.0,3053.9,4.41286188]
[1764324750005,0.002,3054.0,3053.9,4.19366188]
[1764324750201,0.002,3054.0,3053.9,4.41286188]
[1764324752721,0.002,3054.0,3053.9,4.19366188]
[1764324752921,0.002,3054.0,3053.9,4.41286188]
[1764324754022,0.30694618,3054.0,3053.9,4.41286188]
[1764324754414,0.30694618,3054.0,3053.9,4.39739188]
[1764324756724,0.30694618,3054.0,3053.9,4.43013689]